fUST/lending_fUST_20240817
["ID","MTS","AMOUNT","RATE_DAILY","PERIOD"]
[335150598,1723890753186,-625.29,0.000315,2]
[335150599,1723890753196,-500.0,0.00031506,2]
[335150600,1723890753206,-500.0,0.00031506,2]
[335150601,1723890753217,-500.0,0.00031506,2]
[335150602,1723890753227,-500.0,0.00031506,2]
[335150603,1723890753237,-500.0,0.00031506,2]
[335150604,1723890753247,-500.0,0.00031506,2]
[335150605,1723890753256,-500.0,0.00031506,2]
[335150606,1723890753266,-500.0,0.00031506,2]
[335150607,1723890753276,-500.0,0.00031506,2]
[335150608,1723890753287,-500.0,0.00031506,2]
[335150609,1723890753297,-561.21,0.00031506,2]
[335150610,1723890753306,-500.0,0.00031506,2]
[335150611,1723890753316,-500.0,0.00031506,2]
[335150612,1723890753327,-500.0,0.00031506,2]
[335150613,1723890753337,-528.37170914,0.00031506,2]
[335150614,1723890753349,-500.0,0.00031506,2]
[335150615,1723890753360,-500.0,0.00031506,2]
[335150616,1723890753371,-1154.115817,0.00031577,2]
[335150617,1723890753381,-500.0,0.00031738,2]
[335150618,1723890753391,-1414.0,0.00031766,2]
[335150619,1723890753403,-150.887,0.00031766,2]
[335150620,1723890753412,-521.0,0.00031766,2]
[335150621,1723890753422,-500.0,0.00031774,2]
[335150622,1723890753432,-501.54,0.00031774,2]
[335150623,1723890753443,-1683.39,0.00031774,2]
[335150624,1723890753453,-431.86515488,0.00031774,2]
[335150625,1723890753462,-500.0,0.00031774,2]
[335150626,1723890753472,-547.89,0.00031774,2]
[335150627,1723890753483,-500.0,0.00031774,2]
[335150628,1723890753493,-500.0,0.00031774,2]
[335150629,1723890753503,-765.7,0.00031774,2]
[335150630,1723890753513,-500.0,0.00031774,2]
[335150631,1723890753523,-500.0,0.00031774,2]
[335150632,1723890753533,-500.0,0.00031774,2]
[335150633,1723890753543,-633.9,0.00031774,2]
[335150634,1723890753553,-214.54525612,0.00031774,2]
[335150635,1723890753563,-521.11,0.00031774,2]
[335150636,1723890753573,-500.0,0.00031774,2]
[335150637,1723890753583,-500.0,0.00031774,2]
[335150638,1723890753594,-500.0,0.00031774,2]
[335150639,1723890753604,-500.0,0.00031774,2]
[335150640,1723890753613,-775.16,0.00031774,2]
[335150641,1723890753623,-571.1,0.00031774,2]
[335150642,1723890753634,-500.0,0.00031774,2]
[335150643,1723890753645,-668.62,0.00031774,2]
[335150644,1723890753655,-500.0,0.00031774,2]
[335150645,1723890753666,-731.12,0.00031774,2]
[335150646,1723890753677,-632.17,0.00031774,2]
[335150647,1723890753687,-593.02,0.00031774,2]
[335150648,1723890753696,-656.84,0.00031774,2]
[335150649,1723890753706,-633.28,0.00031774,2]
[335150650,1723890753718,-500.0,0.00031774,2]
[335150651,1723890753728,-521.1,0.00031774,2]
[335150652,1723890753739,-764.51,0.00031774,2]
[335150653,1723890753749,-560.67563774,0.00031774,2]
[335150654,1723890753760,-625.26,0.00031774,2]
[335150655,1723890753771,-625.29,0.00031774,2]
[335150656,1723890753781,-500.0,0.0003178,2]
[335150657,1723890753792,-283.60157155,0.0003178,2]
[335150658,1723890753803,-613.51627791,0.0003178,2]
[335150659,1723890753813,-500.0,0.0003178,2]
[335150660,1723890753824,-505.09506103,0.0003178,2]
[335150661,1723890753836,-500.0,0.0003178,2]
[335150662,1723890753845,-500.0,0.0003178,2]
[335150663,1723890753855,-500.0,0.0003178,2]
[335150664,1723890753866,-500.0,0.0003178,2]
[335150665,1723890753878,-500.0,0.0003178,2]
[335150666,1723890753888,-561.21,0.0003178,2]
[335150667,1723890753899,-500.0,0.0003178,2]
[335150668,1723890753909,-500.0,0.0003178,2]
[335150669,1723890753920,-500.0,0.0003178,2]
[335150670,1723890753931,-150.74733389,0.0003178,2]
[335150671,1723890753941,-500.0,0.0003178,2]
[335150672,1723890753951,-1000.0,0.0003178,2]
[335150673,1723890753963,-151.0,0.00031863,120]
[335150674,1723890753974,-1000.0,0.00031878,2]
[335150675,1723890753984,-250.0,0.00032,120]
[335150676,1723890753994,-500.0,0.00032048,2]
[335150677,1723890754006,-501.54,0.00032048,2]
[335150678,1723890754018,-1683.39,0.00032048,2]
[335150679,1723890754029,-275.51872181,0.00032048,2]
[335150680,1723890754040,-547.89,0.00032048,2]
[335150681,1723890754051,-154.75665622,0.00032048,2]
[335150682,1723890754063,-508.45972431,0.00032048,2]
[335150683,1723890754078,-765.7,0.00032048,2]
[335150684,1723890754088,-500.0,0.00032048,2]
[335150685,1723890754099,-500.0,0.00032048,2]
[335150686,1723890754111,-500.0,0.00032048,2]
[335150687,1723890754122,-633.9,0.00032048,2]
[335150688,1723890754133,-521.11,0.00032048,2]
[335150689,1723890754143,-162.45408369,0.00032048,2]
[335150690,1723890754156,-500.0,0.00032048,2]
[335150691,1723890754167,-505.94286734,0.00032048,2]
[335150692,1723890754178,-217.84772124,0.00032048,2]
[335150693,1723890754188,-775.16,0.00032048,2]
[335150694,1723890754199,-571.1,0.00032048,2]
[335150695,1723890754209,-500.0,0.00032048,2]
[335150696,1723890754219,-668.62,0.00032048,2]
[335150697,1723890754230,-500.0,0.00032048,2]
[335150698,1723890754241,-731.12,0.00032048,2]
[335150699,1723890754251,-632.17,0.00032048,2]
[335150700,1723890754261,-593.02,0.00032048,2]
[335150701,1723890754271,-656.84,0.00032048,2]
[335150702,1723890754281,-633.28,0.00032048,2]
[335150703,1723890754295,-500.0,0.00032048,2]
[335150704,1723890754305,-521.1,0.00032048,2]
[335150705,1723890754316,-764.51,0.00032048,2]
[335150706,1723890754326,-625.26,0.00032048,2]
[335150707,1723890754336,-625.29,0.00032048,2]
[335150708,1723890754347,-504.1481922,0.00032054,2]
[335150709,1723890754358,-500.0,0.00032054,2]
[335150710,1723890754368,-500.0,0.00032054,2]
[335150711,1723890754379,-500.0,0.00032054,2]
[335150712,1723890754389,-500.0,0.00032054,2]
[335150713,1723890754399,-500.0,0.00032054,2]
[335150714,1723890754410,-500.0,0.00032054,2]
[335150715,1723890754421,-561.21,0.00032054,2]
[335150716,1723890754432,-500.0,0.00032054,2]
[335150717,1723890754443,-500.0,0.00032054,2]
[335150718,1723890754454,-431.47989311,0.00032054,2]
[335150719,1723890754465,-500.0,0.00032054,2]
[335150720,1723890754475,-153.0,0.00032195,2]
[335150721,1723890754486,-153.0,0.00032195,2]
[335150722,1723890754496,-153.0,0.00032195,2]
[335150723,1723890754506,-153.0,0.00032195,2]
[335150724,1723890754517,-153.0,0.00032195,2]
[335150725,1723890754528,-155.5022428,0.00032195,2]
[335150726,1723890754539,-3000.0,0.000322,11]
[335150727,1723890754550,-3000.0,0.0003221,11]
[335150728,1723890754560,-3000.0,0.0003222,11]
[335150729,1723890754571,-3000.0,0.0003223,11]
[335150730,1723890754581,-3000.0,0.0003224,11]
[335150731,1723890754592,-3000.0,0.0003225,11]
[335150732,1723890754604,-3000.0,0.0003226,11]
[335150733,1723890754614,-3000.0,0.0003227,11]
[335150734,1723890754624,-3000.0,0.0003228,11]
[335150735,1723890754634,-3000.0,0.0003229,11]
[335150736,1723890754645,-3000.0,0.000323,11]
[335150737,1723890754655,-3000.0,0.0003231,11]
[335150738,1723890754666,-4546.862456,0.0003232,11]
[335150739,1723890754677,-275.97127972,0.00032322,2]
[335150740,1723890754687,-501.54,0.00032322,2]
[335150741,1723890754698,-1683.39,0.00032322,2]
[335150742,1723890754709,-547.89,0.00032322,2]
[335150743,1723890754720,-765.7,0.00032322,2]
[335150744,1723890754731,-335.97877901,0.00032322,2]
[335150745,1723890754744,-456.20720215,0.00032322,2]
[335150746,1723890754754,-500.0,0.00032322,2]
[335150747,1723890754765,-633.9,0.00032322,2]
[335150748,1723890754775,-521.11,0.00032322,2]
[335150749,1723890754787,-504.45106627,0.00032322,2]
[335150750,1723890754798,-775.16,0.00032322,2]
[335150751,1723890754808,-571.1,0.00032322,2]
[335150752,1723890754819,-506.63663578,0.00032322,2]
[335150753,1723890754829,-668.62,0.00032322,2]
[335150754,1723890754840,-500.0,0.00032322,2]
[335150755,1723890754851,-731.12,0.00032322,2]
[335150756,1723890754861,-632.17,0.00032322,2]
[335150757,1723890754872,-593.02,0.00032322,2]
[335150758,1723890754883,-656.84,0.00032322,2]
[335150759,1723890754895,-633.28,0.00032322,2]
[335150760,1723890754906,-533.37761331,0.00032322,2]
[335150761,1723890754916,-521.1,0.00032322,2]
[335150762,1723890754926,-764.51,0.00032322,2]
[335150763,1723890754936,-625.26,0.00032322,2]
[335150764,1723890754946,-625.29,0.00032322,2]
[335150765,1723890754956,-190.85510043,0.00032328,2]
[335150766,1723890754966,-500.0,0.00032328,2]
[335150767,1723890754977,-500.0,0.00032328,2]
[335150768,1723890754995,-500.0,0.00032328,2]
[335150769,1723890755005,-506.38615151,0.00032328,2]
[335150770,1723890755016,-500.0,0.00032328,2]
[335150771,1723890755027,-561.21,0.00032328,2]
[335150772,1723890755038,-500.0,0.00032328,2]
[335150773,1723890755049,-500.0,0.00032328,2]
[335150774,1723890755061,-503.13186738,0.00032328,2]
[335150775,1723890755241,-1000.0,0.00032328,2]
[335150776,1723890755251,-155.0,0.0003236,26]
[335150777,1723890755263,-458.6971568,0.00032411,2]
[335150778,1723890755276,-501.69512289,0.00032596,2]
[335150779,1723890755288,-1683.57826873,0.00032596,2]
[335150780,1723890755298,-548.10106226,0.00032596,2]
[335150781,1723890755308,-765.81713122,0.00032596,2]
[335150782,1723890755317,-243.64273102,0.00032596,2]
[335150783,1723890755327,-633.93804788,0.00032596,2]
[335150784,1723890755337,-521.24144194,0.00032596,2]
[335150785,1723890755347,-775.36529685,0.00032596,2]
[335150786,1723890755356,-571.10591639,0.00032596,2]
[335150787,1723890755366,-668.78371361,0.00032596,2]
[335150788,1723890755375,-323.43551963,0.00032596,2]
[335150789,1723890755385,-731.30655303,0.00032596,2]
[335150790,1723890755395,-632.26806596,0.00032596,2]
[335150791,1723890755405,-593.2378989,0.00032596,2]
[335150792,1723890755415,-657.00647392,0.00032596,2]
[335150793,1723890755424,-633.42015777,0.00032596,2]
[335150794,1723890755433,-521.18098408,0.00032596,2]
[335150795,1723890755444,-764.64358855,0.00032596,2]
[335150796,1723890755454,-625.30319505,0.00032596,2]
[335150797,1723890755464,-625.43908162,0.00032596,2]
[335150798,1723890755476,-500.0,0.00032602,2]
[335150799,1723890755488,-504.26139683,0.00032602,2]
[335150800,1723890755498,-500.0,0.00032602,2]
[335150801,1723890755508,-200.70580461,0.00032602,2]
[335150802,1723890755517,-561.21,0.00032602,2]
[335150803,1723890755527,-508.30529992,0.00032602,2]
[335150804,1723890755536,-500.0,0.00032602,2]
[335150805,1723890755546,-1633.20156054,0.00032776,2]
[335150806,1723890755557,-500.0,0.00032876,2]
[335150807,1723890755567,-511.31568153,0.00032876,2]
[335150808,1723890755579,-561.21,0.00032876,2]
[335150809,1723890755591,-535.07273064,0.00032876,2]
[335150810,1723890755602,-1000.0,0.00032876,2]
[335150811,1723890755613,-500.0,0.00032876,2]
[335150812,1723890755623,-500.0,0.00032876,2]
[335150813,1723890755634,-500.0,0.00032876,2]
[335150814,1723890755645,-378.8971461,0.00032876,2]
[335150815,1723890755654,-431.67390749,0.00032876,2]
[335150816,1723890755666,-415.93607534,0.00032876,2]
[335150817,1723890755676,-200.82301927,0.00032876,2]
[335150818,1723890755687,-543.99441321,0.00032876,2]
[335150819,1723890755698,-150.632,0.00032893,2]
[335150820,1723890755709,-150.306,0.00032893,2]
[335150821,1723890755719,-212.93,0.00032893,2]
[335150822,1723890755729,-150.0,0.00032893,2]
[335150823,1723890755744,-150.156,0.00032893,2]
[335150824,1723890755755,-4058.41913502,0.00033,30]
[335150825,1723890755767,-210.74591245,0.00033,120]
[335150826,1723890755777,-506.0576743,0.0003315,2]
[335150827,1723890755787,-561.21,0.0003315,2]
[335150828,1723890755797,-1322.18,0.000333,14]
[335150829,1723890755808,-561.21,0.00033424,2]
[335150830,1723890755819,-1000.0,0.00033424,2]
[335150831,1723890755830,-90737.0,0.00033666,120]
[335150832,1723890755840,-561.38329404,0.00033698,2]
[335150833,1723890755852,-151.0,0.00033726,120]
[335150834,1723890755863,-702.04566164,0.00033835,5]
[335150835,1723890755873,-1000.0,0.00033845,4]
[335150836,1723890755885,-1000.0,0.00033972,2]
[335150837,1723890755895,-250.0,0.00034,120]
[335150838,1723890755906,-162.0,0.0003417,30]
[335150839,1723890755917,-500.0,0.00034505,120]
[335150840,1723890755927,-500.0,0.00034505,120]
[335150841,1723890755937,-500.0,0.00034505,120]
[335150842,1723890755948,-500.0,0.00034505,120]
[335150843,1723890755959,-162.37,0.00034505,120]
[335150844,1723890755970,-500.0,0.00034505,120]
[335150845,1723890755980,-500.0,0.00034505,120]
[335150846,1723890755993,-500.0,0.00034505,120]
[335150847,1723890756003,-500.0,0.00034505,120]
[335150848,1723890756013,-1000.0,0.0003452,2]
[335150849,1723890756022,-564.13437293,0.00034673,2]
[335150850,1723890756033,-1414.0,0.00034766,2]
[335150851,1723890756044,-150.0,0.00034766,2]
[335150852,1723890756055,-521.0,0.00034766,2]
[335150853,1723890756066,-153.0,0.00034767,2]
[335150854,1723890756082,-153.0,0.00034767,2]
[335150855,1723890756094,-153.0,0.00034767,2]
[335150856,1723890756105,-332.277479,0.00034767,2]
[335150857,1723890756118,-153.0,0.00034767,2]
[335150858,1723890756128,-153.0,0.00034767,2]
[335150859,1723890756138,-153.0,0.00034767,2]
[335150860,1723890756150,-153.0,0.00034767,2]
[335150861,1723890756162,-153.0,0.00034767,2]
[335150862,1723890756173,-153.0,0.00034767,2]
[335150863,1723890756185,-153.0,0.00034767,2]
[335150864,1723890756195,-153.0,0.00034767,2]
[335150865,1723890756205,-153.0,0.00034795,2]
[335150866,1723890756216,-153.0,0.0003481,2]
[335150867,1723890756226,-294.9333777,0.0003481,2]
[335150868,1723890756238,-306.0,0.0003481,2]
[335150869,1723890756247,-154.4672607,0.0003481,2]
[335150870,1723890756257,-153.0,0.0003481,2]
[335150871,1723890756267,-153.0,0.0003481,2]
[335150872,1723890756277,-153.0,0.0003481,2]
[335150873,1723890756286,-153.0,0.0003481,2]
[335150874,1723890756297,-294.9333777,0.0003481,2]
[335150875,1723890756307,-294.9333777,0.0003481,2]
[335150876,1723890756318,-153.0,0.0003481,2]
[335150877,1723890756329,-294.9333777,0.0003481,2]
[335150878,1723890756341,-153.0,0.0003481,2]
[335150879,1723890756352,-153.0,0.0003481,2]
[335150880,1723890756365,-153.0,0.0003481,2]
[335150881,1723890756378,-294.9333777,0.0003481,2]
[335150882,1723890756388,-153.0,0.0003481,2]
[335150883,1723890756399,-294.9333777,0.0003481,2]
[335150884,1723890756411,-207.4743021,0.0003481,2]
[335150885,1723890756422,-414.7099595,0.0003481,2]
[335150886,1723890756431,-153.0,0.0003481,2]
[335150887,1723890756443,-294.9333777,0.0003481,2]
[335150888,1723890756453,-294.9333777,0.0003481,2]
[335150889,1723890756462,-153.0,0.0003481,2]
[335150890,1723890756472,-207.4743021,0.0003481,2]
[335150891,1723890756482,-171.4758222,0.0003481,2]
[335150892,1723890756494,-207.4743021,0.0003481,2]
[335150893,1723890756503,-20123.18874044,0.00035,120]
[335150894,1723890756512,-1274.51203629,0.00035,2]
[335150895,1723890756523,-1000.0,0.00035068,2]
[335150896,1723890756535,-753.8813,0.000355,2]
[335150897,1723890756548,-151.0,0.00035589,120]
[335150898,1723890756559,-153.0,0.00035589,2]
[335150899,1723890756569,-153.0,0.00035589,2]
[335150900,1723890756579,-153.0,0.00035589,2]
[335150901,1723890756589,-411.427603,0.00035589,2]
[335150902,1723890756600,-1322.18,0.000356,14]
[335150903,1723890756610,-468.31785346,0.00035616,2]
[335150904,1723890756622,-635.85,0.00035616,2]
[335150905,1723890756633,-635.85,0.00035616,2]
[335150906,1723890756643,-635.85,0.00035616,2]
[335150907,1723890756654,-635.85,0.00035616,2]
[335150908,1723890756665,-635.85,0.00035616,2]
[335150909,1723890756675,-635.85,0.00035616,2]
[335150910,1723890756684,-635.85,0.00035616,2]
[335150911,1723890756695,-635.85,0.00035616,2]
[335150912,1723890756705,-635.85,0.00035616,2]
[335150913,1723890756715,-635.85,0.00035616,2]
[335150914,1723890756725,-635.85,0.00035616,2]
[335150915,1723890756738,-635.85,0.00035616,2]
[335150916,1723890756748,-635.85,0.00035616,2]
[335150917,1723890756759,-635.85,0.00035616,2]
[335150918,1723890756768,-635.85,0.00035616,2]
[335150919,1723890756778,-635.85,0.00035616,2]
[335150920,1723890756787,-635.85,0.00035616,2]
[335150921,1723890756796,-635.85,0.00035616,2]
[335150922,1723890756806,-635.85,0.00035616,2]
[335150923,1723890756815,-635.85,0.00035616,2]
[335150924,1723890756825,-635.85,0.00035616,2]
[335150925,1723890756834,-635.85,0.00035616,2]
[335150926,1723890756843,-635.85,0.00035616,2]
[335150927,1723890756853,-635.86349745,0.00035616,2]
[335150928,1723890756864,-500.0,0.00035616,7]
[335150929,1723890756874,-458.81095193,0.00035616,7]
[335150930,1723890756885,-410.9189794,0.00035616,7]
[335150931,1723890756895,-225.968154,0.00035616,120]
[335150932,1723890756904,-353.84,0.00035616,3]
[335150933,1723890756914,-294.86,0.00035616,3]
[335150934,1723890756925,-207.4743021,0.00035632,2]
[335150935,1723890756934,-207.4743021,0.00035632,2]
[335150936,1723890756944,-207.4743021,0.00035632,2]
[335150937,1723890756954,-207.4743021,0.00035632,2]
[335150938,1723890756963,-207.4743021,0.00035632,2]
[335150939,1723890756973,-206.1463217,0.00035632,2]
[335150940,1723890756982,-153.0,0.00035656,2]
[335150941,1723890756992,-150.0,0.00035893,2]
[335150942,1723890757002,-150.0,0.00035893,2]
[335150943,1723890757012,-200.0,0.00036,120]
[335150944,1723890757022,-500.0,0.00036,30]
[335150945,1723890757035,-306.0,0.00036247,2]
[335150946,1723890757046,-3670.26828292,0.00036414,2]
[335150947,1723890757056,-1633.20156054,0.00036429,2]
[335150948,1723890757067,-297.4462891,0.00036478,2]
[335150949,1723890757083,-10000.0,0.000365,20]
[335150950,1723890757093,-1200.0,0.0003664,4]
[335150951,1723890757105,-151.0,0.00037452,120]
[335150952,1723890757117,-10000.0,0.000375,25]
[335150953,1723890757129,-500.0,0.00037585,2]
[335150954,1723890757138,-1414.0,0.00037766,2]
[335150955,1723890757148,-150.0,0.00037766,2]
[335150956,1723890757160,-521.0,0.00037766,2]
[335150957,1723890757172,-100144.15624481,0.0003788,120]
[335150958,1723890757182,-2000.0,0.00038,16]
[335150959,1723890757192,-1322.18,0.000384,14]
[335150960,1723890757202,-10000.0,0.000385,30]
[335150961,1723890757213,-153.0,0.00038712,2]
[335150962,1723890757223,-153.0,0.00038712,2]
[335150963,1723890757235,-153.0,0.00038712,2]
[335150964,1723890757244,-153.0,0.00038712,2]
[335150965,1723890757253,-150.0,0.00038893,2]
[335150966,1723890757265,-377.08918958,0.00039,4]
[335150967,1723890757278,-151.0,0.00039315,120]
[335150968,1723890757289,-10000.0,0.000395,35]
[335150969,1723890757298,-93914.0,0.000395,30]
[335150970,1723890757307,-1400.0,0.00039609,4]
[335150971,1723890757318,-24048.11143535,0.00039869,120]
[335150972,1723890757329,-539.18567037,0.000399,60]
[335150973,1723890757338,-615.93293282,0.0004,30]
[335150974,1723890757350,-1000.0,0.0004,7]
[335150975,1723890757362,-2000.0,0.0004,32]
[335150976,1723890757373,-3931.35422679,0.0004,2]
[335150977,1723890757384,-1633.20156054,0.00040083,2]
[335150978,1723890757393,-1414.0,0.00040766,2]
[335150979,1723890757404,-150.0,0.00040766,2]
[335150980,1723890757416,-521.0,0.00040766,2]
[335150981,1723890757427,-508.64,0.00041,30]
[335150982,1723890757437,-500.0,0.00041095,2]
[335150983,1723890757447,-500.0,0.00041095,2]
[335150984,1723890757456,-500.0,0.00041095,2]
[335150985,1723890757466,-500.0,0.00041095,2]
[335150986,1723890757475,-500.0,0.00041095,2]
[335150987,1723890757485,-502.66871952,0.00041095,2]
[335150988,1723890757495,-1000.0,0.00041095,120]
[335150989,1723890757505,-1000.0,0.00041095,120]
[335150990,1723890757515,-1000.0,0.00041095,120]
[335150991,1723890757525,-1000.0,0.00041095,120]
[335150992,1723890757536,-1000.0,0.00041095,120]
[335150993,1723890757546,-1000.0,0.00041095,120]
[335150994,1723890757555,-1000.0,0.00041095,120]
[335150995,1723890757565,-1000.0,0.00041095,120]
[335150996,1723890757576,-1000.0,0.00041095,120]
[335150997,1723890757585,-1000.0,0.00041095,120]
[335150998,1723890757595,-181.52816161,0.00041095,120]
[335150999,1723890757604,-151.0,0.00041178,120]
[335151000,1723890757614,-2516.08758286,0.00041643,120]
[335151001,1723890757624,-512.98525162,0.00042,90]
[335151002,1723890757634,-1322.18,0.00042,14]
[335151003,1723890757643,-1600.0,0.00042731,4]
[335151004,1723890757653,-753.8813,0.000428,2]
[335151005,1723890757663,-5000.0,0.00042914,7]
[335151006,1723890757672,-239096.9834,0.00042966,30]
[335151007,1723890757682,-151.0,0.00043041,120]
[335151008,1723890757693,-500.0,0.00043432,120]
[335151009,1723890757702,-154.14,0.000435,33]
[335151010,1723890757712,-154.14,0.000435,33]
[335151011,1723890757721,-154.14,0.000435,33]
[335151012,1723890757731,-154.14,0.000435,33]
[335151013,1723890757741,-154.14,0.000435,33]
[335151014,1723890757751,-154.14,0.000435,33]
[335151015,1723890757761,-154.14,0.000435,33]
[335151016,1723890757770,-154.14,0.000435,33]
[335151017,1723890757780,-154.14,0.000435,33]
[335151018,1723890757790,-154.14,0.000435,33]
[335151019,1723890757801,-154.14,0.000435,33]
[335151020,1723890757812,-154.14,0.000435,33]
[335151021,1723890757822,-154.14,0.000435,33]
[335151022,1723890757832,-1633.20156054,0.00043736,2]
[335151023,1723890757841,-1414.0,0.00043766,2]
[335151024,1723890757851,-150.0,0.00043766,2]
[335151025,1723890757861,-521.0,0.00043766,2]
[335151026,1723890757872,-600.0,0.00043835,120]
[335151027,1723890757882,-472.72169325,0.00043835,120]
[335151028,1723890757892,-155.14384461,0.00044,120]
[335151029,1723890757901,-100000.0,0.000443,60]
[335151030,1723890757912,-158.0,0.00044384,120]
[335151031,1723890757922,-158.0,0.00044384,120]
[335151032,1723890757932,-158.0,0.00044384,120]
[335151033,1723890757944,-158.0,0.00044384,120]
[335151034,1723890757956,-158.0,0.00044384,120]
[335151035,1723890757966,-158.0,0.00044384,120]
[335151036,1723890757976,-158.0,0.00044384,120]
[335151037,1723890757985,-158.0,0.00044384,120]
[335151038,1723890757995,-158.0,0.00044384,120]
[335151039,1723890758003,-158.0,0.00044384,120]
[335151040,1723890758012,-158.0,0.00044384,120]
[335151041,1723890758021,-158.0,0.00044384,120]
[335151042,1723890758030,-158.0,0.00044384,120]
[335151043,1723890758039,-158.0,0.00044384,120]
[335151044,1723890758048,-158.0,0.00044384,120]
[335151045,1723890758057,-158.0,0.00044384,120]
[335151046,1723890758066,-158.0,0.00044384,120]
[335151047,1723890758078,-158.0,0.00044384,120]
[335151048,1723890758087,-158.0,0.00044384,120]
[335151049,1723890758096,-158.0,0.00044384,120]
[335151050,1723890758106,-158.0,0.00044384,120]
[335151051,1723890758116,-158.0,0.00044384,120]
[335151052,1723890758125,-158.0,0.00044384,120]
[335151053,1723890758134,-158.0,0.00044384,120]
[335151054,1723890758143,-158.0,0.00044384,120]
[335151055,1723890758154,-158.0,0.00044384,120]
[335151056,1723890758164,-158.0,0.00044384,120]
[335151057,1723890758174,-158.0,0.00044384,120]
[335151058,1723890758184,-158.0,0.00044384,120]
[335151059,1723890758193,-158.0,0.00044384,120]
[335151060,1723890758203,-158.0,0.00044384,120]
[335151061,1723890758212,-158.0,0.00044384,120]
[335151062,1723890758221,-158.0,0.00044384,120]
[335151063,1723890758230,-158.0,0.00044384,120]
[335151064,1723890758241,-158.0,0.00044384,120]
[335151065,1723890758249,-158.0,0.00044384,120]
[335151066,1723890758258,-158.0,0.00044384,120]
[335151067,1723890758267,-158.0,0.00044384,120]
[335151068,1723890758277,-158.0,0.00044384,120]
[335151069,1723890758286,-158.0,0.00044384,120]
[335151070,1723890758295,-158.0,0.00044384,120]
[335151071,1723890758304,-158.0,0.00044384,120]
[335151072,1723890758313,-158.0,0.00044384,120]
[335151073,1723890758322,-158.0,0.00044384,120]
[335151074,1723890758331,-158.0,0.00044384,120]
[335151075,1723890758341,-158.0,0.00044384,120]
[335151076,1723890758351,-158.0,0.00044384,120]
[335151077,1723890758360,-158.0,0.00044384,120]
[335151078,1723890758369,-158.0,0.00044384,120]
[335151079,1723890758378,-158.0,0.00044384,120]
[335151080,1723890758388,-158.0,0.00044384,120]
[335151081,1723890758397,-158.0,0.00044384,120]
[335151082,1723890758407,-158.0,0.00044384,120]
[335151083,1723890758416,-158.0,0.00044384,120]
[335151084,1723890758426,-158.0,0.00044384,120]
[335151085,1723890758435,-158.0,0.00044384,120]
[335151086,1723890758445,-158.0,0.00044384,120]
[335151087,1723890758454,-158.0,0.00044384,120]
[335151088,1723890758463,-158.0,0.00044384,120]
[335151089,1723890758473,-158.0,0.00044384,120]
[335151090,1723890758482,-158.0,0.00044384,120]
[335151091,1723890758493,-158.0,0.00044384,120]
[335151092,1723890758502,-158.0,0.00044384,120]
[335151093,1723890758511,-158.0,0.00044384,120]
[335151094,1723890758521,-158.0,0.00044384,120]
[335151095,1723890758530,-158.0,0.00044384,120]
[335151096,1723890758539,-158.0,0.00044384,120]
[335151097,1723890758549,-158.0,0.00044384,120]